bitfinex/quotes_ETHUSD_20240730
["timestamp","ask_amount","ask_price","bid_price","bid_amount"]
[1722316037131,0.05535216,3320.4,3320.3,35.0]
[1722316037963,2.40904,3320.9,3320.3,37.25044302]
[1722316038166,0.05477743,3320.8,3320.3,37.25044302]
[1722316038868,0.05477743,3320.8,3320.5,2.3162]
[1722316039364,0.05481949,3320.7,3320.5,2.3162]
[1722316039545,7.37,3321.0,3320.6,35.06022329]
[1722316039748,0.05498303,3320.9,3320.6,35.06022329]
[1722316040238,0.05498303,3320.9,3320.6,35.0]
[1722316040438,2.40909,3320.8,3320.6,35.0]
[1722316040645,2.40913,3320.7,3320.6,35.0]
[1722316040841,2.46436534,3320.7,3320.6,35.0]
[1722316041866,4.87349534,3320.7,3320.6,35.0]
[1722316042233,5.51626016,3320.7,3320.6,35.0]
[1722316042930,6.06788618,3320.7,3320.6,35.0]
[1722316043636,2.40957,3320.1,3319.4,4.77336]
[1722316044037,0.05519797,3320.0,3319.9,35.0]
[1722316044465,2.40942,3320.3,3319.9,35.0]
[1722316044847,0.05508117,3320.2,3319.9,35.0]
[1722316045363,0.05508117,3320.1,3319.9,35.0]
[1722316045669,2.40942,3320.3,3319.9,35.0]
[1722316045861,0.05508117,3320.0,3319.9,35.0]
[1722316046085,0.05504377,3320.0,3319.9,35.0]
[1722316046410,4.81926,3320.0,3319.9,35.0]
[1722316046581,2.46467377,3320.0,3319.9,35.0]
[1722316049399,2.46467377,3320.0,3319.4,2.3633]
[1722316049767,2.46467377,3320.0,3319.9,35.0]
[1722316050388,2.46467377,3320.0,3319.4,2.840645]
[1722316050389,2.46467377,3320.0,3319.1,2.3129]
[1722316050600,3.05226019,3319.9,3319.1,2.3129]
[1722316050903,2.40972,3319.9,3319.1,37.3129]
[1722316051073,0.05488487,3319.8,3319.1,37.3129]
[1722316051274,0.05488487,3319.8,3319.1,40.36191288]
[1722316052184,2.40993,3319.6,3319.1,40.36191288]
[1722316052505,2.40993,3319.6,3319.1,35.0]
[1722316052806,2.40998,3319.6,3319.1,35.0]
[1722316052977,2.41009,3319.4,3319.1,35.0]
[1722316053181,0.05469321,3319.3,3319.1,35.0]
[1722316065653,2.41021,3319.2,3319.1,35.0]
[1722316068890,2.40993,3319.6,3319.1,35.0]
[1722316069250,2.41001,3319.5,3319.1,35.0]
[1722316069453,2.46381506,3319.5,3319.1,35.0]
[1722316069959,0.05380506,3319.5,3319.2,0.06025009]
[1722316070244,2.40987,3319.7,3319.2,0.06025009]
[1722316070723,2.40973,3319.9,3319.1,38.04901288]
[1722316070724,2.46378443,3319.6,3319.1,3.04901288]
[1722316070894,2.46378443,3319.6,3318.8,5.144]
[1722316071090,2.46378443,3319.6,3319.3,35.0]
[1722316071304,0.05381443,3319.6,3319.3,35.0]
[1722316071691,2.40978,3319.8,3319.3,35.0]
[1722316071916,0.05394067,3319.5,3319.3,37.4296]
[1722316072228,0.05399678,3319.4,3319.3,37.4296]
[1722316072449,0.05399678,3319.4,3319.3,35.0]
[1722316072643,2.40993,3319.6,3319.3,35.0]
[1722316073344,2.40964,3320.0,3319.3,35.0]
[1722316073545,2.40971,3319.9,3319.3,38.04901288]
[1722316073747,2.46375356,3319.9,3319.3,38.04901288]
[1722316074249,0.05404356,3319.9,3319.4,0.06024428]
[1722316074549,0.05404356,3319.9,3319.3,40.45915288]
[1722316074722,2.40965,3320.0,3319.3,40.45915288]
[1722316074928,0.05409966,3319.8,3319.3,40.45915288]
[1722316075133,2.40971,3319.9,3319.3,40.45915288]
[1722316075650,2.46387966,3319.8,3319.3,38.04901288]
[1722316076552,2.40986,3319.7,3319.3,35.0]
[1722316076928,0.05426796,3319.6,3319.3,35.0]
[1722316077717,2.40971,3319.9,3319.3,35.0]
[1722316078237,0.0541651,3319.8,3319.3,35.0]
[1722316078639,0.0541651,3319.8,3319.4,2.47031496]
[1722316078851,2.40932,3320.5,3319.7,2.401]
[1722316079052,2.40932,3320.5,3319.8,2.46996553]
[1722316079425,2.40932,3320.5,3319.9,35.0]
[1722316079843,2.40935,3320.4,3319.9,35.0]
[1722316080268,2.4637634,3320.3,3319.9,35.0]
[1722316080574,2.40957,3320.1,3319.9,35.0]
[1722316080874,2.40963,3320.0,3319.9,35.0]
[1722316081166,2.4639634,3320.0,3319.9,35.0]
[1722316081366,0.0543334,3320.0,3319.9,35.0]
[1722316081778,2.40949,3320.2,3319.9,35.0]
[1722316081975,0.05437547,3320.0,3319.9,35.0]
[1722316082634,2.40928,3320.5,3319.9,35.0]
[1722316082829,3.39532,3320.7,3320.0,0.06023591]
[1722316083033,0.05431937,3320.4,3320.0,0.06023591]
[1722316083264,2.40932,3320.5,3320.0,0.06023591]
[1722316083471,0.05431937,3320.3,3320.1,2.40955]
[1722316083648,9.77899,3320.9,3320.2,2.46971933]
[1722316083844,2.40906,3320.8,3320.2,2.40949]
[1722316084049,2.40906,3320.8,3320.0,2.40959]
[1722316084246,2.40906,3320.8,3320.0,3.136749]
[1722316084439,2.40906,3320.8,3320.3,35.0]
[1722316084835,2.4092,3320.6,3320.3,35.0]
[1722316085348,7.37,3320.9,3320.3,35.0]
[1722316085349,2.40927,3320.5,3320.3,35.0]
[1722316085672,2.40934,3320.4,3320.3,35.0]
[1722316087359,2.40913,3320.7,3320.3,35.0]
[1722316087360,2.40923,3320.6,3320.3,35.0]
[1722316087679,2.40929,3320.5,3320.3,35.0]
[1722316089144,2.40934,3320.4,3320.3,35.0]
[1722316089542,4.68534,3320.7,3320.3,35.0]
[1722316089748,2.40921,3320.6,3320.3,35.0]
[1722316091862,2.40932,3320.5,3320.3,35.0]
[1722316092057,2.40934,3320.4,3320.3,35.0]
[1722316095202,0.054511,3320.4,3320.3,35.0]
[1722316095575,2.40921,3320.6,3320.3,35.0]
[1722316095776,0.054511,3320.4,3320.3,35.0]
[1722316096118,2.40921,3320.6,3320.3,35.0]
[1722316096406,0.05450164,3320.4,3320.3,35.0]
[1722316096582,0.05450164,3320.4,3320.3,37.4306]
[1722316096992,2.40907,3320.8,3320.3,37.4306]
[1722316097193,0.054511,3320.4,3320.3,37.4306]
[1722316097579,0.054511,3320.4,3320.3,35.0]
[1722316098484,2.463851,3320.4,3320.3,35.0]
[1722316098880,7.272491,3320.4,3320.3,35.0]
[1722316099984,2.40967,3320.0,3319.2,2.3047]
[1722316100183,2.40983,3319.8,3319.2,2.3047]
[1722316100381,2.40983,3319.8,3319.7,35.0]
[1722316100994,2.40967,3320.0,3319.7,35.0]
[1722316101306,2.40958,3320.1,3319.7,35.0]
[1722316101509,2.40965,3320.0,3319.7,35.0]
[1722316103535,9.77949,3320.2,3319.7,35.0]
[1722316103697,2.40957,3320.1,3319.7,35.0]
[1722316104327,7.37,3320.2,3319.7,35.0]
[1722316104533,9.77949,3320.2,3319.7,35.0]
[1722316105037,2.40956,3320.1,3319.7,35.0]
[1722316108020,2.40971,3319.9,3319.7,35.0]
[1722316108414,2.40957,3320.1,3319.7,35.0]
[1722316109930,2.40964,3320.0,3319.7,35.0]
[1722316110300,0.05439417,3319.9,3319.7,35.0]
[1722316111445,2.40978,3319.8,3319.7,35.0]
[1722316111940,2.46417417,3319.8,3319.7,35.0]
[1722316114013,2.40978,3319.8,3319.7,35.0]
[1722316114216,4.8739308,3319.8,3319.7,35.0]
[1722316114523,2.41001,3319.5,3318.9,2.294]
[1722316115031,0.0543708,3319.4,3319.0,35.0]
[1722316115238,2.41001,3319.5,3319.0,36.113]
[1722316117240,2.40985,3319.7,3319.1,0.0602497]
[1722316117424,2.40985,3319.7,3319.1,3.10926258]
[1722316117737,0.05426797,3319.6,3319.1,0.0602497]
[1722316117937,0.05426797,3319.6,3319.2,35.0]
[1722316118339,2.40985,3319.7,3319.2,35.0]
[1722316120440,4.85343,3319.9,3319.2,37.41021]
[1722316120643,3.10654652,3319.8,3319.2,37.41021]
[1722316120941,2.4098,3319.8,3319.2,37.41021]
[1722316121117,2.40985,3319.7,3319.2,35.0]
[1722316127616,2.41,3319.5,3319.2,35.0]
[1722316127814,0.05412771,3319.4,3319.2,35.0]
[1722316128026,2.41,3319.5,3319.2,35.0]
[1722316128321,0.05412771,3319.4,3319.2,35.0]
[1722316128838,2.41,3319.5,3319.2,35.0]
[1722316129350,0.05412771,3319.4,3319.2,35.0]
[1722316129883,2.41,3319.5,3319.2,35.0]
[1722316130262,0.05412771,3319.4,3319.2,35.0]
[1722316132020,4.82028,3319.3,3319.2,35.0]
[1722316132263,4.87426277,3319.3,3319.2,35.0]
[1722316133572,2.46412277,3319.3,3319.2,35.0]
[1722316136480,0.05398277,3319.3,3319.2,35.0]
[1722316137072,0.05380041,3319.3,3319.2,35.0]
[1722316137245,7.37,3319.9,3319.2,35.0]
[1722316137246,2.40987,3319.7,3319.2,35.0]
[1722316137568,0.05380041,3319.6,3319.2,35.0]
[1722316137770,2.46374041,3319.6,3319.2,35.0]
[1722316138139,0.05380041,3319.6,3319.2,35.0]
[1722316138775,9.77971,3319.9,3319.2,37.41021]
[1722316138959,0.64193873,3319.8,3319.2,37.41021]
[1722316139271,0.05384247,3319.8,3319.3,1.113]
[1722316139984,2.46365247,3319.8,3319.3,1.113]
[1722316140190,2.46365247,3319.8,3319.4,35.0]
[1722316140351,0.05384247,3319.8,3319.4,35.0]
[1722316140553,0.05384247,3319.8,3319.4,38.04901288]
[1722316140847,0.05384247,3319.8,3319.4,35.0]
[1722316142103,0.05384247,3319.8,3319.7,3.4058]
[1722316142517,2.40956,3320.1,3319.7,3.4058]
[1722316142657,0.05415576,3319.8,3319.5,1.113]
[1722316143151,0.05415576,3319.8,3319.7,35.0]
[1722316143769,9.77943,3320.3,3319.7,36.113]
[1722316143770,7.37,3320.3,3319.7,36.113]
[1722316143953,0.64219843,3320.2,3319.8,6.88548793]
[1722316144155,7.37,3320.3,3320.1,1.113]
[1722316144391,14.88899,3320.9,3320.1,1.113]
[1722316144392,7.37,3320.9,3320.1,1.113]
[1722316144602,0.64215082,3320.8,3320.1,1.113]
[1722316144758,3.05130082,3320.7,3320.0,2.46984423]
[1722316144958,2.4092,3320.6,3320.0,2.46984423]
[1722316145293,0.64215082,3320.5,3320.0,2.46984423]
[1722316145490,9.77898,3320.9,3320.0,3.51065157]
[1722316145491,2.40913,3320.7,3320.0,3.51065157]
[1722316145691,0.64226175,3320.6,3320.0,3.51065157]
[1722316145989,0.64226175,3320.5,3320.0,3.51065157]
[1722316146169,2.40913,3320.7,3320.0,3.51065157]
[1722316146364,0.64220918,3320.6,3320.0,3.51065157]
[1722316146593,2.40925,3320.6,3320.0,1.10104157]
[1722316146893,0.64221724,3320.5,3320.1,2.40955]
[1722316147102,7.37,3320.9,3320.3,2.3362]
[1722316147103,9.77898,3320.9,3320.3,2.3362]
[1722316147403,3.05130062,3320.8,3320.3,2.3362]
[1722316147620,0.64224062,3320.7,3320.3,2.3362]
[1722316147780,2.40906,3320.8,3320.3,2.3362]
[1722316147979,0.64221006,3320.7,3320.3,2.3362]
[1722316148285,2.40906,3320.8,3320.3,2.3362]
[1722316148485,0.64222685,3320.7,3320.3,2.3362]
[1722316148679,2.40906,3320.8,3320.3,2.3362]
[1722316148885,0.64225215,3320.7,3320.3,2.3362]
[1722316149086,2.40906,3320.8,3320.3,2.3362]
[1722316149974,7.37,3320.9,3320.4,2.40934]
[1722316150304,7.37,3320.9,3320.5,1.113]
[1722316150485,7.37,3320.9,3320.6,35.0]
[1722316150683,2.40884,3321.1,3320.6,35.0]
[1722316151006,0.64195162,3321.0,3320.6,35.0]
[1722316151255,0.64187104,3320.9,3320.6,35.0]
[1722316151504,2.40887,3321.1,3320.6,35.0]
[1722316151883,2.40913,3320.7,3320.0,2.3966]
[1722316152089,2.40942,3320.3,3319.4,3.5096]
[1722316152283,2.2594,3320.2,3319.4,3.5096]
[1722316152591,2.40961,3320.1,3319.5,35.0]
[1722316153806,2.40969,3320.0,3319.5,35.0]
[1722316154196,0.05476335,3319.9,3319.5,35.0]
[1722316154594,2.40969,3320.0,3319.5,35.0]
[1722316154800,2.40978,3319.8,3319.5,35.0]
[1722316155183,0.05453905,3319.7,3319.5,35.0]
[1722316155613,2.40978,3319.8,3319.5,35.0]
[1722316155919,0.05446429,3319.7,3319.5,35.0]
[1722316156116,2.46434429,3319.7,3319.5,35.0]
[1722316156311,2.40988,3319.7,3319.5,35.0]
[1722316156706,2.2594,3320.2,3319.5,35.0]
[1722316157018,2.40976,3319.9,3319.5,35.0]
[1722316157221,2.40958,3320.1,3319.5,35.0]
[1722316157421,0.05432405,3319.8,3319.6,2.2924]
[1722316157719,2.4095,3320.2,3319.6,5.29402841]
[1722316157907,2.40959,3320.1,3319.6,5.23378682]
[1722316158107,0.05432405,3320.1,3319.6,2.2924]
[1722316158306,2.40956,3320.2,3319.6,2.2924]
[1722316158489,2.40959,3320.1,3319.6,2.2924]
[1722316159525,2.40965,3320.0,3319.5,35.0]
[1722316160828,2.40951,3320.2,3319.5,38.04901288]
[1722316161189,0.05430535,3320.1,3319.5,38.04901288]
[1722316161587,2.40951,3320.2,3319.5,38.04901288]
[1722316162005,0.05430535,3320.1,3319.5,38.04901288]
[1722316162325,2.40951,3320.2,3319.5,38.04901288]
[1722316162549,2.40951,3320.2,3319.5,40.45899288]
[1722316162733,0.05431939,3320.1,3319.5,40.45899288]
[1722316163094,2.40951,3320.2,3319.5,40.45899288]
[1722316163425,2.40965,3320.0,3319.5,35.0]
[1722316164024,0.05432872,3319.9,3319.5,35.0]
[1722316164321,2.40956,3320.1,3319.5,35.0]
[1722316164523,2.40946,3320.3,3319.6,2.47016249]
[1722316164735,0.05432872,3320.0,3319.7,2.15513144]
[1722316164949,2.40946,3320.3,3319.7,2.15513144]
[1722316165432,0.05432872,3320.2,3319.7,2.15513144]
[1722316166543,0.05432872,3320.2,3319.7,4.56497144]
[1722316167046,2.40936,3320.4,3319.7,4.56497144]
[1722316167343,0.64182232,3320.3,3319.7,4.56497144]
[1722316167545,2.4095,3320.2,3319.7,2.15513144]
[1722316167712,0.05446428,3320.3,3319.6,0.06024249]
[1722316167912,2.40935,3320.4,3319.7,2.40985]
[1722316168115,0.05446428,3320.2,3319.8,35.0]
[1722316168315,2.40935,3320.4,3319.8,35.0]
[1722316168507,0.05448765,3320.1,3319.9,2.2883]
[1722316168712,4.77497,3320.8,3320.0,2.40963]
[1722316168923,0.64178692,3320.7,3320.0,2.40963]
[1722316169217,2.46366971,3320.7,3320.1,35.0]
[1722316169417,2.40949,3320.2,3320.1,35.0]
[1722316169954,2.46401971,3320.2,3320.1,35.0]
[1722316170244,0.05452971,3320.2,3320.1,35.0]
[1722316170645,2.40942,3320.3,3320.1,35.0]
[1722316171049,0.05455776,3320.2,3320.1,35.0]
[1722316171465,2.40942,3320.3,3320.1,35.0]
[1722316171762,0.05455776,3320.2,3320.1,35.0]
[1722316172145,2.40942,3320.3,3320.1,35.0]
[1722316172527,0.05456246,3320.2,3320.1,35.0]
[1722316173057,2.40928,3320.5,3320.1,35.0]
[1722316173266,0.05454376,3320.4,3320.1,35.0]
[1722316173560,2.46389376,3320.4,3320.1,35.0]
[1722316173724,2.40942,3320.3,3320.1,35.0]
[1722316174243,0.05454843,3320.2,3320.1,35.0]
[1722316174621,2.46403843,3320.2,3320.1,35.0]
[1722316174822,8.01225245,3320.2,3320.1,35.0]
[1722316175055,8.56225245,3320.2,3320.1,35.0]
[1722316175240,9.67525245,3320.2,3320.1,35.0]
[1722316175760,9.67524845,3320.2,3320.1,35.0]
[1722316177159,8.56224845,3320.2,3320.1,35.0]
[1722316178426,8.31584461,3320.2,3320.1,35.0]
[1722316181365,8.31584461,3320.2,3319.4,2.4478]
[1722316181366,2.40966,3320.0,3319.4,2.4478]
[1722316181571,0.64201618,3319.9,3319.4,2.4478]
[1722316181772,0.05416509,3319.9,3319.5,35.0]
[1722316182133,2.40964,3320.0,3319.5,35.0]
[1722316182468,2.4099,3319.7,3319.5,35.0]
[1722316182906,2.40992,3319.6,3319.5,35.0]
[1722316183057,3.05161581,3319.6,3319.5,35.0]
[1722316183261,2.40992,3319.6,3319.5,35.0]
[1722316183467,3.05164611,3319.6,3319.5,35.0]
[1722316183642,2.46415523,3319.6,3319.5,35.0]
[1722316183988,3.10580325,3319.6,3319.5,35.0]
[1722316184473,0.69588325,3319.6,3319.5,35.0]
[1722316184663,0.05423523,3319.6,3319.5,35.0]
[1722316185084,2.46415523,3319.6,3319.5,35.0]
[1722316194548,3.10570384,3319.6,3319.5,35.0]
[1722316194882,2.46415523,3319.6,3319.5,35.0]
[1722316195449,3.10549118,3319.6,3319.5,35.0]
[1722316200222,5.51541118,3319.6,3319.5,35.0]
[1722316200804,3.10549118,3319.6,3319.5,35.0]
[1722316201323,5.51541118,3319.6,3319.5,35.0]
[1722316201525,5.51552801,3319.6,3319.5,35.0]
[1722316203333,6.40602081,3319.6,3319.5,35.0]
[1722316204104,6.95602081,3319.6,3319.5,35.0]
[1722316205998,2.41023,3319.2,3318.7,2.3028]
[1722316206427,0.05385652,3319.1,3318.7,2.3028]
[1722316206731,0.05385652,3319.1,3318.8,35.0]
[1722316206937,2.41023,3319.2,3318.8,35.0]
[1722316207432,0.05385652,3319.1,3318.8,35.0]
[1722316207735,2.41023,3319.2,3318.8,35.0]
[1722316208094,0.05193485,3319.1,3318.8,35.0]
[1722316208297,2.41023,3319.2,3318.8,36.14428196]
[1722316208535,0.05193485,3319.1,3318.8,36.14428196]
[1722316209025,2.41023,3319.2,3318.8,36.14428196]
[1722316209338,0.05195358,3319.1,3318.8,36.14428196]
[1722316209850,2.41023,3319.2,3318.8,36.14428196]
[1722316210334,0.05194421,3319.1,3318.8,36.14428196]
[1722316210737,2.40986,3319.7,3318.9,3.10926958]
[1722316210937,7.37,3319.8,3318.9,3.10926958]
[1722316210938,0.64141931,3319.6,3318.9,3.10926958]
[1722316211109,3.05141931,3319.5,3319.0,1.113]
[1722316211314,3.05141931,3319.5,3319.1,35.0]
[1722316211315,0.05198167,3319.4,3319.1,35.0]
[1722316211523,0.05198167,3319.4,3319.2,2.4978]
[1722316211723,0.05198167,3319.4,3318.8,4.75508196]
[1722316211926,0.05198167,3319.4,3318.9,0.06025214]
[1722316212319,0.05198167,3319.4,3319.3,35.0]
[1722316212963,3.10350441,3319.4,3319.3,35.0]
[1722316213444,2.46205167,3319.4,3319.3,35.0]
[1722316215205,3.10327876,3319.4,3319.3,35.0]
[1722316215652,2.46205167,3319.4,3319.3,35.0]
[1722316216447,3.10324111,3319.4,3319.3,35.0]
[1722316216855,5.51331111,3319.4,3319.3,35.0]
[1722316217151,5.82363522,3319.4,3319.3,35.0]
[1722316218220,5.51331111,3319.4,3319.3,35.0]
[1722316219433,2.41043,3319.0,3318.4,2.2571]
[1722316219660,2.41051,3318.8,3318.4,2.2571]
[1722316219958,1.113,3319.3,3318.4,2.2571]
[1722316219959,2.46247269,3318.7,3318.4,2.2571]
[1722316220362,0.05189269,3318.7,3318.6,35.0]
[1722316220730,2.41043,3318.9,3318.6,35.0]
[1722316220927,0.00087,3504.1,3318.6,35.0]
[1722316220928,2.41058,3318.7,3318.6,35.0]
[1722316221478,2.3839,3319.4,3318.7,2.3597]
[1722316221651,0.64132107,3319.3,3318.8,0.0602564]
[1722316221856,0.64132107,3319.2,3318.9,1.113]
[1722316222054,2.41022,3319.2,3318.9,1.113]
[1722316222239,0.05167263,3319.1,3318.9,1.113]
[1722316222443,2.41022,3319.2,3318.9,1.113]
[1722316222840,2.41022,3319.2,3318.8,0.0602564]
[1722316222841,0.05167263,3319.1,3318.8,0.0602564]
[1722316223086,0.05167263,3319.1,3319.0,1.113]
[1722316223383,2.41,3319.5,3319.0,3.60265223]
[1722316223548,2.41,3319.5,3319.3,1.113]
[1722316223749,2.40985,3319.7,3319.3,1.113]
[1722316223949,2.40985,3319.7,3319.1,1.1732522]
[1722316223950,0.64137167,3319.6,3319.1,1.1732522]
[1722316224156,0.64137167,3319.5,3319.4,35.0]
[1722316224370,7.37,3319.8,3319.4,35.0]
[1722316224685,2.40944,3320.3,3319.6,1.113]
[1722316224988,14.7365,3320.6,3319.4,35.0]
[1722316224989,0.64141065,3320.2,3320.1,1.113]
[1722316225167,7.37,3320.8,3320.1,1.113]
[1722316225168,9.77906,3320.8,3320.1,1.113]
[1722316225345,9.77906,3320.8,3320.0,2.4358]
[1722316225346,0.6414198,3320.7,3320.4,1.113]
[1722316225540,2.2565,3321.2,3320.5,35.0]
[1722316225541,2.40895,3321.0,3320.5,35.0]
[1722316225865,0.6414094,3320.9,3320.6,1.113]
[1722316226188,2.40899,3320.9,3320.6,1.113]
[1722316226552,2.40899,3320.9,3320.7,35.0]
[1722316227063,9.6265,3321.2,3320.7,35.0]
[1722316227064,2.40905,3320.8,3320.7,35.0]
[1722316227258,5.45995201,3320.8,3320.7,35.0]
[1722316227463,8.82765201,3320.8,3320.7,35.0]
[1722316227682,11.23670201,3320.8,3320.7,35.0]
[1722316228071,11.78670201,3320.8,3320.7,35.0]
[1722316228245,2.40943,3320.3,3319.6,1.113]
[1722316228451,2.40964,3320.0,3319.6,1.113]
[1722316228676,2.40964,3320.0,3319.9,35.0]
[1722316228877,2.40953,3320.2,3319.9,35.0]
[1722316229255,0.052431,3320.1,3319.9,35.0]
[1722316229686,2.40936,3320.4,3319.9,35.0]
[1722316229884,2.40943,3320.3,3319.9,35.0]
[1722316230089,2.461861,3320.3,3319.9,35.0]
[1722316231276,0.052431,3320.3,3319.9,35.0]
[1722316231492,0.052431,3320.3,3320.0,2.3939]
[1722316231690,2.40927,3320.5,3320.0,2.3939]
[1722316231855,0.052431,3320.2,3320.0,2.3939]
[1722316232054,2.40927,3320.5,3320.0,2.3939]
[1722316232308,0.05240293,3320.1,3320.0,5.44291288]
[1722316232591,2.40927,3320.5,3320.0,5.44291288]
[1722316232757,2.40927,3320.5,3320.0,2.3939]
[1722316232957,0.05250587,3320.4,3320.0,2.3939]
[1722316233887,2.46185587,3320.4,3320.0,2.3939]
[1722316234866,0.05250587,3320.4,3320.0,2.3939]
[1722316235279,0.05250587,3320.4,3320.0,2.45413502]
[1722316235482,9.77906,3320.8,3320.1,3.04901288]
[1722316235801,9.77906,3320.8,3320.2,0.06023047]
[1722316236006,2.46160313,3320.7,3320.0,4.80348]
[1722316236164,2.46160313,3320.7,3320.3,35.0]
[1722316236517,0.05247313,3320.7,3320.3,35.0]
[1722316236794,2.40899,3320.9,3320.4,2.37433045]
[1722316236986,0.05247313,3320.8,3320.4,2.3141]
[1722316237766,2.46153313,3320.8,3320.4,2.3141]
[1722316237902,2.46153313,3320.8,3320.3,35.0]
[1722316238680,0.05247313,3320.8,3320.3,35.0]
[1722316238878,0.05247313,3320.8,3320.4,5.51857942]
[1722316239073,2.40884,3321.1,3320.4,5.51857942]
[1722316239308,0.05247313,3320.7,3320.4,5.51857942]
[1722316239508,2.40884,3321.1,3320.4,5.51857942]
[1722316239748,0.05247313,3320.6,3320.4,5.51857942]
[1722316239876,9.77877,3321.2,3320.5,5.45828288]
[1722316240079,9.77877,3321.2,3320.5,5.51850793]
[1722316240294,2.40884,3321.1,3320.5,5.51850793]
[1722316240487,2.40884,3321.1,3320.5,3.10923793]
[1722316240686,7.37,3321.2,3320.6,0.61582508]
[1722316240687,2.40891,3321.0,3320.6,0.61582508]
[1722316241294,2.409,3320.9,3320.5,3.04901288]
[1722316241488,2.40906,3320.8,3320.3,35.0]
[1722316242217,2.40891,3321.0,3320.3,37.40941]
[1722316242401,9.77878,3321.2,3320.3,35.0]
[1722316242402,2.4738,3320.9,3320.3,35.0]
[1722316242785,2.72118,3320.9,3320.3,35.0]
[1722316243025,2.40927,3320.5,3320.3,35.0]
[1722316243229,2.40913,3320.7,3320.3,35.0]
[1722316243445,2.40929,3320.5,3320.3,35.0]
[1722316244090,2.40916,3320.7,3320.3,35.0]
[1722316244529,2.4738,3320.9,3320.3,35.0]
[1722316244686,7.29248,3320.4,3320.3,35.0]
[1722316245332,7.34573924,3320.4,3320.3,35.0]
[1722316247819,2.46259924,3320.4,3320.3,35.0]
[1722316248403,0.05325924,3320.4,3320.3,35.0]
[1722316248939,2.46259924,3320.4,3320.3,35.0]
[1722316249140,2.40934,3320.4,3320.3,35.0]
[1722316249344,2.4623887,3320.4,3320.3,35.0]
[1722316256839,4.77784,3320.7,3320.3,35.0]
[1722316257194,0.05303937,3320.6,3320.3,35.0]
[1722316257699,2.40931,3320.5,3320.3,35.0]
[1722316258046,0.05285692,3320.4,3320.3,35.0]
[1722316258245,2.40931,3320.5,3320.3,35.0]
[1722316258462,0.05293645,3320.4,3320.3,35.0]
[1722316258854,2.40931,3320.5,3320.3,35.0]
[1722316259055,0.05293645,3320.4,3320.3,35.0]
[1722316259281,2.40931,3320.5,3320.3,35.0]
[1722316259881,0.05296452,3320.4,3320.3,35.0]
[1722316260421,2.40907,3320.8,3320.3,35.36901409]
[1722316260620,0.05298322,3320.7,3320.3,35.0]
[1722316260827,2.40899,3320.9,3320.3,35.0]
[1722316260987,0.0529879,3320.8,3320.3,35.0]
[1722316261805,2.40929,3320.5,3320.3,35.0]
[1722316262002,0.05315633,3320.4,3320.3,35.0]
[1722316262283,2.40934,3320.4,3320.3,35.0]
[1722316262815,2.46265072,3320.4,3320.3,35.0]
[1722316263124,4.87199072,3320.4,3320.3,35.0]
[1722316267425,5.51342096,3320.4,3320.3,35.0]
[1722316271754,3.10408096,3320.4,3320.3,35.0]
[1722316274638,2.40942,3320.3,3320.0,2.3834]
[1722316274821,2.46250128,3320.2,3319.8,1.113]
[1722316275257,2.46250128,3320.2,3320.1,35.0]
[1722316275458,0.69440302,3320.2,3320.1,35.0]
[1722316275629,0.64139174,3320.2,3320.1,35.0]
[1722316275838,3.10400062,3320.2,3320.1,35.0]
[1722316279963,2.46260888,3320.2,3320.1,35.0]
[1722316280158,0.05311888,3320.2,3320.1,35.0]
[1722316280553,2.40946,3320.3,3320.1,35.0]
[1722316280750,3.10394784,3320.2,3320.1,35.0]
[1722316281631,0.69445784,3320.2,3320.1,35.0]
[1722316281859,0.05309552,3320.2,3320.1,35.0]
[1722316282131,2.40942,3320.3,3320.1,35.0]
[1722316282446,0.05309552,3320.2,3320.1,35.0]
[1722316282645,2.40942,3320.3,3320.1,35.0]
[1722316282852,0.05309552,3320.2,3320.1,35.0]
[1722316283048,2.40942,3320.3,3320.1,35.0]
[1722316283368,3.10412644,3320.2,3320.1,35.0]
[1722316283534,3.10417012,3320.2,3320.1,35.0]
[1722316283734,2.46258552,3320.2,3320.1,35.0]
[1722316283941,3.10416747,3320.2,3320.1,35.0]
[1722316285755,6.06501022,3320.2,3320.1,35.0]
[1722316285933,4.87207552,3320.2,3320.1,35.0]
[1722316286133,5.513763,3320.2,3320.1,35.0]
[1722316286574,6.626763,3320.2,3320.1,35.0]
[1722316288245,5.513763,3320.2,3320.1,35.0]
[1722316290053,2.40973,3319.9,3319.4,1.113]
[1722316290240,0.69465663,3319.8,3319.5,0.577534]
[1722316290474,0.05296915,3319.8,3319.6,35.0]
[1722316290671,2.40973,3319.9,3319.6,35.0]
[1722316290999,0.64154588,3319.8,3319.6,35.0]
[1722316291154,2.40973,3319.9,3319.6,35.0]
[1722316291155,3.05139588,3319.7,3319.6,35.0]
[1722316292773,3.10437906,3319.7,3319.6,35.0]
[1722316294442,2.46283318,3319.7,3319.6,35.0]
[1722316294775,3.1044228,3319.7,3319.6,35.0]
[1722316295683,3.1044228,3319.7,3319.2,1.113]
[1722316295842,2.46283318,3319.7,3319.2,1.113]
[1722316296182,2.46283318,3319.7,3319.6,35.0]
[1722316296382,3.1044598,3319.7,3319.6,35.0]
[1722316296960,3.10442992,3319.7,3319.6,35.0]
[1722316298796,2.46283318,3319.7,3319.6,35.0]
[1722316299174,2.40985,3319.7,3319.6,35.0]
[1722316300486,2.40976,3319.9,3319.6,35.0]